[Event "Bundesturnier Hauptturnier 1 2024"]
[Site "Olten"]
[Date "2024.05.09"]
[Round "1.1"]
[White "Riedener, Toni"]
[Black "Bauer, Christian"]
[Result "0-1"]
[ECO "A41"]
[WhiteElo "1969"]
[BlackElo "2576"]
[Annotator "TA"]
[PlyCount "60"]
[EventDate "2024.05.09"]
[EventType "tourn"]
[EventCountry "SUI"]
[SourceTitle "playchess.com"]
[Source "ChessBase"]
[SourceQuality "1"]
[TimeControl "5400+30"]

{[%evp 9,60,0,10,0,-2,-30,-18,-11,-16,-78,-47,-90,-83,-81,27,8,16,0,14,-15,-13,-12,-19,0,-13,-12,-17,-3,0,0,13,-23,0,0,15,0,-5,0,0,0,0,-7,0,0,-8,-258,-254,-256,-256,-234,-120,-2081,-1926]} 1. d4 {[%emt 0:00:05]} d6 {[%emt 0:00:25]} 2. c4 {[%emt 0:00:09]} e5 {[%emt 0:00:06]} 3. Nf3 {[%emt 0:00:19]} e4 {[%emt 0:00:34]} 4. Ng1 {[%emt 0:00:05]} h6 {[%emt 0:05:03]} 5. g3 {[%emt 0:02:09]} c6 {[%emt 0:00:56]} 6. Bg2 {[%emt 0:01:20]} Nf6 {[%emt 0:03:12]} 7. Nh3 {[%emt 0:02:34]} d5 {[%emt 0:03:30]} 8. O-O {[%emt 0:03:35] The position is equal.} dxc4 {[%emt 0:01:59]} 9. Qc2 {[%emt 0:07:39]} (9. Nd2 $1 $11) 9... Qxd4 {[%emt 0:01:53]} 10. Be3 {[%emt 0:04:56] [#]} Qe5 {[%emt 0:02:14]} 11. Nd2 {[%emt 0:18:06]} Be7 {[%emt 0:12:08]} (11... b5 $17 12. a4 Bf5) 12. Nxc4 $11 {[%emt 0:01:51]} Qf5 {[%emt 0:00:27]} 13. Nf4 $36 {[%emt 0:06:27][%mdl 2048] Threatening Bh3. Black is under pressure.} O-O {[%emt 0:01:37]} 14. Bh3 {[%emt 0:07:30]} Qb5 {[%emt 0:04:05] White should prevent ...g5.} 15. a4 {[%emt 0:06:40]} Qa6 {[%emt 0:00:29] With the idea ...g5.} 16. Bxc8 {[%emt 0:11:17]} Rxc8 {[%emt 0:00:02]} 17. Nd2 {[%emt 0:00:51]} Nbd7 {[%emt 0:14:05]} 18. Nxe4 {[%emt 0:03:39]} Re8 {[%emt 0:04:19]} 19. Nxf6+ {[%emt 0:02:11]} Nxf6 {[%emt 0:00:50]} 20. Rfe1 {[%emt 0:05:31]} (20. Bd4 {with more complications.} Ng4 21. h3 Bf6 22. Bc5) 20... Bb4 {[%emt 0:07:08]} 21. Red1 {[%emt 0:02:46]} Qa5 {[%emt 0:01:50]} 22. Bd2 {[%emt 0:02:35]} Re4 {[%emt 0:03:25]} 23. Bxb4 {[%emt 0:02:02]} Qxb4 {[%emt 0:00:23]} 24. b3 {[%emt 0:00:51]} Rae8 {[%emt 0:01:02]} 25. Rd2 {[%emt 0:01:09]} Rxf4 {[%emt 0:04:03]} 26. gxf4 {[%emt 0:00:01]} Qxf4 {[%emt 0:00:09] [#] Strongly threatening ...Ng4.} 27. e3 $2 {[%emt 0:01:24]} (27. f3 $1 $11) 27... Qg4+ $19 {[%emt 0:01:09]} 28. Kf1 {[%emt 0:00:20]} Ne4 {[%emt 0:00:55] Threatens to win with ...Qh3+.} 29. Rd4 {[%emt 0:02:00]} c5 {[%emt 0:02:37]} (29... Qh3+ $19 30. Ke1 Qxh2) 30. Qxc5 $2 {[%emt 0:03:00][%mdl 8192]} (30. Rxe4 $17 Rxe4 31. Rd1) 30... Qh3+ {[%emt 0:00:10] Weighted Error Value: White=0.41/Black=0.19 (very precise) .  Loses game:     	White=2     	---        Mistake:       	White=1     	Black=2      Inaccurate:     	White=4     	Black=2      OK:         	White=8     	Black=9      Best:        	White=1     	Black=2} 0-1

[Event "Bundesturnier Hauptturnier 1 2024"]
[Site "Olten"]
[Date "2024.05.09"]
[Round "1.2"]
[White "Baenziger, Fabian"]
[Black "Delmonico, Nils"]
[Result "1-0"]
[ECO "E08"]
[WhiteElo "2415"]
[BlackElo "1913"]
[Annotator "TA"]
[PlyCount "65"]
[EventDate "2024.05.09"]
[EventType "tourn"]
[EventCountry "SUI"]
[SourceTitle "playchess.com"]
[Source "ChessBase"]
[SourceQuality "1"]
[TimeControl "5400+30"]

{[%evp 23,65,100,93,18,119,108,158,153,170,137,145,144,202,204,203,179,250,254,241,143,201,223,277,255,241,224,246,187,191,157,204,151,366,389,610,634,830,769,960,916,29985,29986,29986,5737]} 1. d4 {[%emt 0:00:03]} d5 {[%emt 0:00:11]} 2. c4 {[%emt 0:00:25]} e6 {[%emt 0:00:13]} 3. Nf3 {[%emt 0:00:51]} Nf6 {[%emt 0:00:14]} 4. g3 {[%emt 0:01:22]} Be7 {[%emt 0:00:42]} 5. Bg2 {[%emt 0:00:06]} O-O {[%emt 0:00:18]} 6. O-O {[%emt 0:01:31]} c6 {[%emt 0:00:19][%cal Bc7c6,Bc6c5][%mdl 32]} 7. Qc2 {[%emt 0:00:43]} b6 {[%emt 0:00:32]} 8. Rd1 {[%emt 0:01:06]} Bb7 {[%emt 0:02:48]} 9. b3 {[%emt 0:00:28]} Nbd7 {[%emt 0:04:41]} 10. Nc3 {[%emt 0:00:22]} Rc8 {[%emt 0:05:59]} 11. e4 {[%emt 0:02:20]} c5 {[%emt 0:10:12]} 12. exd5 {[%emt 0:01:06]} exd5 {[%emt 0:01:22]} 13. Bf4 {[%emt 0:08:10]} (13. Bb2 $16) 13... dxc4 {[%emt 0:07:05]} (13... Re8 $11) 14. d5 $16 {[%emt 0:00:16] d6 is the strong threat.} Re8 {[%emt 0:01:14]} ({Better is} 14... Nh5) 15. bxc4 {[%emt 0:07:15] White is much more active. White is clearly better.} Bf8 {[%emt 0:00:38]} 16. Nb5 {[%emt 0:01:25][%cal Bc3b5,Bb5a7,Ba7c6][%mdl 32]} a6 {[%emt 0:04:43]} 17. Na7 {[%emt 0:00:53]} Ra8 {[%emt 0:00:29]} (17... Rc7 $16 18. Bxc7 Qxc7) 18. Nc6 $18 {[%emt 0:00:05]} Qc8 {[%emt 0:00:32]} 19. a4 {[%emt 0:04:55]} Ne4 {[%emt 0:05:24]} (19... Bxc6 $2 20. dxc6 Qxc6 21. Ng5 $18) (19... Nh5 {might work better.}) 20. Bh3 {[%emt 0:18:12] Black must now prevent Nfe5.} g6 {[%emt 0:04:15]} 21. Nh4 {[%emt 0:09:24]} (21. Bxd7 $18 Qxd7 22. Nce5) 21... Bg7 {[%emt 0:13:41]} (21... Nd6 $16 22. Rab1 (22. Ne5 f5 $18) 22... Qc7 (22... Bxc6 $2 23. dxc6 Qxc6 24. Bg2 $18)) 22. Ra3 {[%emt 0:00:07]} f5 {[%emt 0:03:22] [#]} 23. Nxf5 $1 {[%emt 0:05:54][%mdl 512]} gxf5 {[%emt 0:00:20]} 24. Bxf5 {[%emt 0:00:03]} Nef6 {[%emt 0:00:59]} 25. g4 {[%emt 0:02:22][%cal Bg3g4,Bg4g5][%mdl 32]} Bxc6 {[%emt 0:21:06] [#]} 26. g5 $36 {[%emt 0:08:54][%mdl 2048] Black is under strong pressure.} ({Don't do} 26. dxc6 Qxc6 27. g5 Nf8) 26... Bxa4 {[%emt 0:07:18]} (26... Nh5 $16 {was worth a try.} 27. Bc1 Bb7) 27. Qxa4 {[%emt 0:00:58]} b5 $2 {[%emt 0:00:54]} (27... Nh5 $16) 28. Qc2 {[%emt 0:02:51]} ({But not} 28. cxb5 axb5 29. Qxa8 Qxa8 $18) 28... Ne4 {[%emt 0:02:44]} (28... Nh5 $142) 29. Rh3 {[%emt 0:02:17]} Ra7 {[%emt 0:02:07]} 30. Bxh7+ {[%emt 0:00:10] A strong pair of Bishops.} Kf8 {[%emt 0:00:19]} 31. Bxe4 {[%emt 0:00:20]} Kg8 {[%emt 0:00:47]} 32. Bh7+ {[%emt 0:01:47]} Kf8 {[%emt 0:00:02]} 33. Bd6+ {[%emt 0:00:18] Black got outplayed after the opening.   Weighted Error Value: White=0.20 (precise) /Black=0.91.  Loses game:     	---       	Black=1      Mistake:       	White=1     	Black=7      Inaccurate:     	---       	Black=1      OK:         	White=5     	Black=2      Best:        	White=4     	Black=3      Brilliant:      	White=1     	---} (33. Qf5+ $142 Ke7 34. Re3+ Ne5 35. Rxe5+ (35. Bxe5 Qxf5 36. Bxf5 Bxe5 $18) 35... Bxe5 36. Qxe5+ Kd8 37. Qf6+ Ree7 38. Re1) 1-0

[Event "Bundesturnier Hauptturnier 1 2024"]
[Site "Olten"]
[Date "2024.05.09"]
[Round "1.3"]
[White "Wilhelm, Serge"]
[Black "Joie, Sebastien"]
[Result "0-1"]
[ECO "A80"]
[WhiteElo "1928"]
[BlackElo "2382"]
[Annotator "TA"]
[PlyCount "62"]
[EventDate "2024.05.09"]
[EventType "tourn"]
[EventCountry "SUI"]
[SourceTitle "playchess.com"]
[Source "ChessBase"]
[SourceQuality "1"]
[TimeControl "5400+30"]

{[%evp 9,62,0,6,1,2,8,14,-9,-1,-12,2,-20,-2,-45,-33,-52,-47,-47,-50,-45,0,-40,-14,-39,13,-46,-2,-33,-16,-48,-43,-127,-70,-168,-182,-231,-233,-302,-281,-368,-373,-372,-256,-299,-301,-471,-387,-743,-477,-895,-859,-2662,-2541,-29990,-29990]} 1. d4 {[%emt 0:00:02]} e6 {[%emt 0:00:32]} 2. Nf3 {[%emt 0:00:33]} f5 {[%emt 0:00:37]} 3. Bg5 {[%emt 0:02:11]} Be7 {[%emt 0:00:06]} 4. Bxe7 {[%emt 0:00:52]} Qxe7 {[%emt 0:00:05]} 5. c3 {[%emt 0:01:34]} Nf6 {[%emt 0:00:12]} 6. Nbd2 {[%emt 0:01:31]} O-O {[%emt 0:01:19]} 7. e3 {[%emt 0:02:24]} d6 {[%emt 0:03:30]} 8. Qb3 {[%emt 0:07:52] The position is equal.} Kh8 {[%emt 0:00:29]} 9. Be2 {[%emt 0:03:49]} a5 {[%emt 0:03:00]} 10. a3 {[%emt 0:05:03]} Nc6 {[%emt 0:05:50]} 11. Rc1 {[%emt 0:04:31]} e5 {[%emt 0:02:29]} 12. dxe5 {[%emt 0:08:27]} dxe5 {[%emt 0:08:23]} 13. O-O {[%emt 0:00:47]} a4 {[%emt 0:20:11]} 14. Qc2 {[%emt 0:02:44]} Qc5 {[%emt 0:02:48]} 15. Bc4 {[%emt 0:06:32]} b5 {[%emt 0:04:30]} 16. Ba2 {[%emt 0:02:22]} Ra6 {[%emt 0:03:39]} (16... e4 $15 17. Nd4 Bd7) 17. Rfd1 {[%emt 0:02:51]} ({White should play} 17. e4 $1 $11) 17... Qe7 {[%emt 0:15:53]} 18. Nf1 {[%emt 0:02:21]} g6 {[%emt 0:04:17]} 19. Qe2 {[%emt 0:04:58]} Rb6 {[%emt 0:00:20]} 20. Ng3 {[%emt 0:04:13]} (20. c4 $15 e4 21. Nd4 Nxd4 22. exd4) 20... Ba6 {[%emt 0:00:58]} (20... e4 $17 21. Ng5 Rb8) 21. Qe1 {[%emt 0:01:43]} (21. e4 $1 $15 b4 22. Bc4 Bxc4 (22... bxa3 23. Bxa6 axb2 24. Rb1 $11) 23. Qxc4) 21... e4 $19 {[%emt 0:00:35]} 22. Nd4 {[%emt 0:02:19]} (22. Ng5 $142) 22... Ne5 {[%emt 0:00:02]} 23. Rb1 {[%emt 0:05:17]} c5 {[%emt 0:00:40]} 24. Nc2 {[%emt 0:01:23]} Nd3 {[%emt 0:00:48]} 25. Qd2 {[%emt 0:01:16]} c4 {[%emt 0:01:26]} 26. Nd4 {[%emt 0:02:31]} Ng4 {[%emt 0:00:38][%cal Oe7h4]} 27. Nh1 {[%emt 0:01:41]} (27. Rf1 {was necessary.}) 27... Qe5 {[%emt 0:01:32]} 28. g3 $2 {[%emt 0:01:42]} (28. f4 exf3 29. Nxf3) 28... Bb7 {[%emt 0:01:40]} 29. h3 {[%emt 0:04:04] [#]} (29. Rf1 $142) 29... Ngxf2 $1 {[%emt 0:01:18][%mdl 512]} 30. Nxf2 {[%emt 0:00:32]} (30. Rf1 Nxh1) 30... Qxg3+ {[%emt 0:00:04]} 31. Kf1 {[%emt 0:00:44]} f4 {[%emt 0:00:03] Weighted Error Value: White=1.15/Black=0.40.  Mistake:       	White=7     	Black=2      Inaccurate:     	White=6     	Black=5      OK:         	White=3     	Black=5      Best:        	---       	Black=2} 0-1

[Event "Bundesturnier Hauptturnier 1 2024"]
[Site "Olten"]
[Date "2024.05.09"]
[Round "1.4"]
[White "Loetscher, Roland"]
[Black "Manukonda Arun"]
[Result "1-0"]
[ECO "A21"]
[WhiteElo "2384"]
[BlackElo "1970"]
[Annotator "TA"]
[PlyCount "77"]
[EventDate "2024.05.09"]
[EventType "tourn"]
[EventCountry "SUI"]
[SourceTitle "playchess.com"]
[Source "ChessBase"]
[SourceQuality "1"]
[TimeControl "5400+30"]

{[%evp 9,77,53,58,43,58,54,54,55,59,52,54,57,62,48,51,22,95,99,102,112,106,101,163,158,157,161,162,159,185,187,275,285,282,282,272,269,307,306,345,345,354,365,342,289,452,400,393,343,432,399,453,448,390,444,735,677,861,919,888,907,2081,1948,2785,2598,3281,3108,2655,2341,29971,7608]} 1. c4 {[%emt 0:00:02]} e5 {[%emt 0:00:34]} 2. g3 {[%emt 0:00:08]} d6 {[%emt 0:00:11]} 3. Nc3 {[%emt 0:00:29]} f5 {[%emt 0:00:28]} 4. d4 {[%emt 0:01:21]} e4 {[%emt 0:00:02]} 5. h4 {[%emt 0:07:06]} Nf6 {[%emt 0:03:43]} 6. Nh3 {[%emt 0:01:09]} Be7 {[%emt 0:04:12]} 7. Bg5 {[%emt 0:02:19]} O-O {[%emt 0:01:31]} 8. Nf4 {[%emt 0:04:27] White is slightly better.} c6 {[%emt 0:03:44]} 9. e3 {[%emt 0:03:14]} Na6 {[%emt 0:05:36]} 10. Be2 {[%emt 0:09:39]} Nc7 {[%emt 0:02:53]} 11. Qb3 {[%emt 0:01:31]} Rb8 {[%emt 0:08:28]} 12. Rc1 {[%emt 0:10:06]} Ne6 {[%emt 0:09:37] [#]} (12... Be6 $11 {remains equal.}) 13. c5 $1 $16 {[%emt 0:00:46] White has more active pieces. Black is now going downhill.} d5 {[%emt 0:00:19]} 14. Nxe6 {[%emt 0:00:16]} Bxe6 {[%emt 0:00:03]} 15. Bf4 {[%emt 0:00:10]} Qd7 {[%emt 0:10:20]} 16. Bxb8 $18 {[%emt 0:00:11]} Rxb8 {[%emt 0:00:02]} 17. Qc2 {[%emt 0:02:37]} Bd8 {[%emt 0:02:27]} 18. b4 {[%emt 0:00:52]} Bc7 {[%emt 0:00:13]} 19. b5 {[%emt 0:00:59]} Qf7 {[%emt 0:05:45]} (19... cxb5 $142 20. Nxb5 (20. Bxb5 Qc8 $18) 20... Ba5+ 21. Kf1 a6) 20. bxc6 {[%emt 0:04:15]} bxc6 {[%emt 0:00:05]} 21. Rb1 {[%emt 0:00:20]} Rxb1+ {[%emt 0:00:48]} 22. Qxb1 {[%emt 0:00:07]} (22. Nxb1 $6 a5 23. Nc3 h6 $18) 22... Bc8 {[%emt 0:00:05]} 23. Qb4 {[%emt 0:03:16] Prevents Ba5.} Qd7 {[%emt 0:09:16]} 24. Qa4 {[%emt 0:02:11]} a5 {[%emt 0:01:09]} 25. Kd2 {[%emt 0:04:37]} h6 {[%emt 0:02:58]} 26. h5 {[%emt 0:04:45]} Ng4 {[%emt 0:00:56]} (26... Kh7 $142 27. Rb1 g6) 27. Rb1 {[%emt 0:08:17][%cal Oc3d5] And now Nxd5! would win.} Kh7 {[%emt 0:05:52]} 28. Nd1 {[%emt 0:03:47]} Qe8 {[%emt 0:02:16]} 29. Kc1 {[%emt 0:03:16]} Nh2 {[%emt 0:03:27]} 30. Nc3 {[%emt 0:05:03]} Qe6 {[%emt 0:03:15]} 31. Rb6 {[%emt 0:06:11]} Bd7 {[%emt 0:07:59]} (31... Bxb6 $142 32. cxb6 Ng4 33. Bxg4 (33. Qxa5 Nxf2 34. Qa7 Qd6 $18) 33... fxg4 34. Qxa5 Qf7) 32. Qxa5 {[%emt 0:01:54]} Nf3 {[%emt 0:00:59] [#]} 33. Qa7 $1 {[%emt 0:02:04]} Bxb6 {[%emt 0:00:58]} 34. cxb6 {[%emt 0:00:07] b7 is the strong threat.} (34. Qxb6 f4 $16) 34... Qd6 {[%emt 0:01:51]} 35. Bxf3 {[%emt 0:01:47]} exf3 {[%emt 0:00:44]} 36. b7 {[%emt 0:00:57]} Qb4 {[%emt 0:00:10]} 37. Kc2 {[%emt 0:00:49]} (37. b8=R $2 {loses.} Qxc3+ 38. Kd1 Qd3+ 39. Kc1 Qf1+ 40. Kc2 Qxf2+ 41. Kb3 Qxe3+ (41... Qxg3 $2 {is the wrong capture.} 42. Qa8 $18) 42. Ka4 f2 $19) 37... f4 {[%emt 0:00:01]} 38. b8=Q {[%emt 0:00:21]} ({Not} 38. b8=B Bf5+ 39. e4 Bxe4+ 40. Nxe4 dxe4 $11) 38... Bf5+ {[%emt 0:00:15] [#]} 39. e4 $1 {[%emt 0:00:08] Weighted Error Value: White=0.11 (very precise) /Black=0.57.  Mistake:       	---       	Black=5      Inaccurate:     	White=1     	---        OK:         	White=13    	Black=3      Best:        	White=3     	---        Brilliant:      	White=1     	---} 1-0

[Event "Bundesturnier Hauptturnier 1 2024"]
[Site "Olten"]
[Date "2024.05.09"]
[Round "1.5"]
[White "Cervelli, Eduard"]
[Black "Willems, Niels"]
[Result "0-1"]
[ECO "B10"]
[WhiteElo "2015"]
[BlackElo "2329"]
[Annotator "TA"]
[PlyCount "44"]
[EventDate "2024.05.09"]
[EventType "tourn"]
[EventCountry "SUI"]
[SourceTitle "playchess.com"]
[Source "ChessBase"]
[SourceQuality "1"]
[TimeControl "5400+30"]

{[%evp 9,44,0,3,-5,-1,0,0,-1,34,10,28,0,0,0,11,0,0,-18,0,-74,-78,-78,-73,-120,-111,-325,-217,-320,-306,-317,-318,-391,-394,-390,-398,-447,-433]} 1. e4 {[%emt 0:00:03]} c6 {[%emt 0:00:09]} 2. d3 {[%emt 0:00:12]} d5 {[%emt 0:00:05]} 3. Nd2 {[%emt 0:00:14]} e5 {[%emt 0:01:43]} 4. Ngf3 {[%emt 0:00:08]} Bd6 {[%emt 0:00:18]} 5. d4 {[%emt 0:01:25]} exd4 $1 {[%emt 0:03:56]} 6. Bd3 {[%emt 0:00:08]} Ne7 {[%emt 0:02:52]} 7. O-O {[%emt 0:00:18]} O-O {[%emt 0:01:38]} 8. Nxd4 {[%emt 0:00:27] The position is equal.} Ng6 {[%emt 0:04:44]} 9. N2f3 {[%emt 0:27:47]} Bc7 {[%emt 0:20:50]} 10. exd5 {[%emt 0:09:35]} Qxd5 {[%emt 0:01:29]} 11. Re1 {[%emt 0:05:04]} Nd7 {[%emt 0:07:19]} 12. Be3 {[%emt 0:17:22]} Nf6 {[%emt 0:13:45]} 13. Qe2 {[%emt 0:09:33]} Ng4 {[%emt 0:05:05]} 14. Bd2 {[%emt 0:01:59] [#]} (14. Bxg6 $11 {keeps the balance.} hxg6 15. h3 Nxe3 16. Qxe3) 14... Nxh2 $1 $17 {[%emt 0:01:19] Black is more active.} 15. Nxh2 {[%emt 0:02:54] Qe4 would now be deadly.} Qxd4 {[%emt 0:00:07]} 16. Qh5 {[%emt 0:04:50]} (16. Rad1 $142) 16... Bb6 {[%emt 0:11:30]} 17. Bc3 $2 {[%emt 0:03:49] Now White is beyond hope.} (17. Nf3 $17 Qxf2+ (17... Qxb2 $2 {perishes.} 18. Ng5 $18) 18. Kh1) 17... Qxf2+ $40 {[%emt 0:00:32][%mdl 128] Black attacks with force.} 18. Kh1 {[%emt 0:00:01] [#]} Qxg2+ $3 {[%emt 0:02:04][%mdl 512]} 19. Kxg2 {[%emt 0:00:19]} Nf4+ {[%emt 0:00:01]} 20. Kh1 {[%emt 0:04:19]} Nxh5 {[%emt 0:00:02]} 21. Nf3 {[%emt 0:02:04] [#]} Bf5 $1 {[%emt 0:01:09][%mdl 512]} 22. Bc4 {[%emt 0:01:47] [#]} (22. Rad1 Bg4) 22... Be4 $1 {[%emt 0:02:57][%mdl 512] Weighted Error Value: White=0.50/Black=0.07 (flawless) .  Loses game:     	White=1     	---        Mistake:       	White=2     	---        Inaccurate:     	White=1     	Black=1      OK:         	White=3     	Black=8      Best:        	---       	Black=1      Brilliant:      	---       	Black=1} 0-1

[Event "Bundesturnier Hauptturnier 1 2024"]
[Site "Olten"]
[Date "2024.05.09"]
[Round "1.6"]
[White "Rohrer, Christophe"]
[Black "Lips, Adrian"]
[Result "1-0"]
[ECO "B50"]
[WhiteElo "2240"]
[BlackElo "1941"]
[Annotator "RC"]
[PlyCount "51"]
[EventDate "2024.05.09"]
[EventType "tourn"]
[EventCountry "SUI"]
[SourceTitle "playchess.com"]
[Source "ChessBase"]
[SourceQuality "1"]
[TimeControl "5400+30"]

1. e4 {[%emt 0:00:04]} c5 {[%emt 0:00:06]} 2. Nf3 {[%emt 0:00:07]} d6 {[%emt 0:00:06]} 3. Bc4 {[%emt 0:00:12]} Nf6 {[%emt 0:00:42]} 4. d3 {[%emt 0:00:08]} g6 {[%emt 0:10:46]} 5. e5 {[%emt 0:00:17]} dxe5 {[%emt 0:00:35]} 6. Nxe5 {[%emt 0:00:09]} e6 {[%emt 0:00:45]} 7. Qf3 {[%emt 0:01:48]} a6 {[%emt 0:13:25]} 8. Bg5 {[%emt 0:07:57]} Bg7 {[%emt 0:01:28]} 9. Nc3 {[%emt 0:01:26]} h6 {[%emt 0:04:02]} 10. Bh4 {[%emt 0:02:30]} Ra7 {[%emt 0:06:05]} 11. a4 {[%emt 0:05:51]} Nbd7 {[%emt 0:05:37]} 12. Nxd7 {[%emt 0:10:59]} Bxd7 {[%emt 0:00:51]} 13. Ne4 {[%emt 0:03:10]} g5 {[%emt 0:00:44]} 14. Nd6+ {[%emt 0:03:25]} Ke7 {[%emt 0:06:56]} 15. Bg3 {[%emt 0:00:27]} Bc6 {[%emt 0:00:40]} 16. Qe3 {[%emt 0:07:54]} b6 {[%emt 0:07:26]} 17. Nxf7 {[%emt 0:04:33]} Kxf7 {[%emt 0:00:15]} 18. Qxe6+ {[%emt 0:00:04]} Kg6 {[%emt 0:00:15]} 19. Qxc6 {[%emt 0:00:18]} Re8+ {[%emt 0:01:30]} 20. Kd2 {[%emt 0:01:54]} Kh7 {[%emt 0:02:35]} 21. Rhe1 {[%emt 0:04:57]} Rae7 {[%emt 0:00:17]} 22. f3 {[%emt 0:08:17]} Nh5 {[%emt 0:01:50]} 23. Bf7 {[%emt 0:06:08]} Nxg3 {[%emt 0:03:15]} 24. Bg6+ {[%emt 0:01:01]} Kh8 {[%emt 0:00:32]} 25. Qxe8+ {[%emt 0:01:36]} Qxe8 {[%emt 0:00:55]} 26. Bxe8 {[%emt 0:00:00]} 1-0

[Event "Bundesturnier Hauptturnier 1 2024"]
[Site "Olten"]
[Date "2024.05.09"]
[Round "1.7"]
[White "Malli, Shiivesh Sunil"]
[Black "Gryshko, Vitalii"]
[Result "0-1"]
[ECO "A17"]
[WhiteElo "1948"]
[BlackElo "2316"]
[Annotator "RC"]
[PlyCount "158"]
[EventDate "2024.05.09"]
[EventType "tourn"]
[EventCountry "SUI"]
[SourceTitle "playchess.com"]
[Source "ChessBase"]
[SourceQuality "1"]
[TimeControl "5400+30"]

1. c4 {[%emt 0:00:04]} Nf6 {[%emt 0:00:06]} 2. Nc3 {[%emt 0:00:06]} e6 {[%emt 0:00:04]} 3. d3 {[%emt 0:00:10]} d5 {[%emt 0:01:22]} 4. Bg5 {[%emt 0:01:27]} d4 {[%emt 0:01:17]} 5. Nb1 {[%emt 0:01:14]} Be7 {[%emt 0:10:46]} 6. Nf3 {[%emt 0:03:15]} c5 {[%emt 0:00:52]} 7. g3 {[%emt 0:00:37]} O-O {[%emt 0:04:05]} 8. Bg2 {[%emt 0:02:08]} Nc6 {[%emt 0:00:15]} 9. O-O {[%emt 0:02:06]} e5 {[%emt 0:01:42]} 10. Nbd2 {[%emt 0:02:06]} Rb8 {[%emt 0:01:15]} 11. Nb3 {[%emt 0:02:25]} Bd6 {[%emt 0:00:41]} 12. Nfd2 {[%emt 0:00:42]} h6 {[%emt 0:01:05]} 13. Bxf6 {[%emt 0:04:20]} Qxf6 {[%emt 0:00:05]} 14. Ne4 {[%emt 0:02:14]} Qe7 {[%emt 0:00:04]} 15. e3 {[%emt 0:03:06]} dxe3 {[%emt 0:03:20]} 16. fxe3 {[%emt 0:00:18]} Be6 {[%emt 0:00:02]} 17. Nc3 {[%emt 0:00:57]} f5 {[%emt 0:03:14]} 18. Nd5 {[%emt 0:03:46]} Qg5 {[%emt 0:00:04]} 19. Qe2 {[%emt 0:02:53]} Rbe8 {[%emt 0:01:33]} 20. Nd2 {[%emt 0:03:17]} Qg6 {[%emt 0:01:34]} 21. Bf3 {[%emt 0:02:29]} Rd8 {[%emt 0:02:12]} 22. Bh5 {[%emt 0:06:55]} Qg5 {[%emt 0:03:08]} 23. Bf3 {[%emt 0:01:20]} Rd7 {[%emt 0:11:25]} 24. Rf2 {[%emt 0:05:16]} Ne7 {[%emt 0:03:09]} 25. Raf1 {[%emt 0:02:08]} Ng6 {[%emt 0:05:05]} 26. Bg2 {[%emt 0:04:19]} h5 {[%emt 0:02:17]} 27. Bh3 {[%emt 0:02:54]} Rdf7 {[%emt 0:08:59]} 28. e4 {[%emt 0:07:43]} Bxd5 {[%emt 0:01:12]} 29. Nf3 {[%emt 0:03:10]} Qh6 {[%emt 0:03:07]} 30. cxd5 {[%emt 0:00:44]} Ne7 {[%emt 0:02:44]} 31. Nh4 {[%emt 0:00:30]} g6 {[%emt 0:04:51]} 32. exf5 {[%emt 0:02:22]} c4 {[%emt 0:02:47]} 33. f6 {[%emt 0:11:00]} Nxd5 {[%emt 0:01:30]} 34. Be6 {[%emt 0:00:32]} Ne3 {[%emt 0:00:40]} 35. dxc4 {[%emt 0:03:37]} Nxf1 {[%emt 0:04:23]} 36. Rxf1 {[%emt 0:00:28]} Kh7 {[%emt 0:00:02]} 37. Bxf7 {[%emt 0:01:05]} Rxf7 {[%emt 0:00:06]} 38. Qd3 {[%emt 0:00:32]} Bc5+ {[%emt 0:00:38]} 39. Kh1 {[%emt 0:02:16]} Bd4 {[%emt 0:00:01]} 40. b3 {[%emt 0:04:44]} Qg5 {[%emt 0:02:56]} 41. Qf3 {[%emt 0:01:42]} Qe3 {[%emt 0:00:51]} 42. Qxe3 {[%emt 0:03:31]} Bxe3 {[%emt 0:00:03]} 43. Kg2 {[%emt 0:01:07]} e4 {[%emt 0:01:38]} 44. Re1 {[%emt 0:00:39]} Bc5 {[%emt 0:00:02]} 45. Rxe4 {[%emt 0:00:42]} Rxf6 {[%emt 0:00:02]} 46. Nf3 {[%emt 0:01:18]} Ra6 {[%emt 0:00:03]} 47. Re2 {[%emt 0:00:31]} Kh6 {[%emt 0:00:39]} 48. h4 {[%emt 0:00:45]} Kg7 {[%emt 0:01:03]} 49. Ng5 {[%emt 0:00:21]} Bb4 {[%emt 0:00:23]} 50. a4 {[%emt 0:01:23]} Rb6 {[%emt 0:00:32]} 51. Re6 {[%emt 0:01:36]} Bc5 {[%emt 0:00:57]} 52. Rxb6 {[%emt 0:00:11]} Bxb6 {[%emt 0:00:03]} 53. b4 {[%emt 0:00:57]} Kf6 {[%emt 0:00:13]} 54. Kf3 {[%emt 0:00:31]} Ke5 {[%emt 0:00:08]} 55. c5 {[%emt 0:00:25]} Bc7 {[%emt 0:00:17]} 56. Ke3 {[%emt 0:00:17]} Kd5 {[%emt 0:00:17]} 57. Ne4 {[%emt 0:00:41]} Kc4 {[%emt 0:01:06]} 58. b5 {[%emt 0:00:59]} Kb4 {[%emt 0:00:51]} 59. Kd4 {[%emt 0:00:15]} Kxa4 {[%emt 0:00:41]} 60. Kc4 {[%emt 0:00:13]} Ka5 {[%emt 0:06:14]} 61. Nd6 {[%emt 0:00:55]} b6 {[%emt 0:00:03]} 62. Ne4 {[%emt 0:00:41]} a6 {[%emt 0:01:45]} 63. bxa6 {[%emt 0:00:20]} b5+ {[%emt 0:00:02]} 64. Kd5 {[%emt 0:00:21]} Kxa6 {[%emt 0:00:02]} 65. Kc6 {[%emt 0:00:26]} Bb8 {[%emt 0:00:14]} 66. Kd7 {[%emt 0:00:46]} b4 {[%emt 0:00:26]} 67. c6 {[%emt 0:00:23]} Kb6 {[%emt 0:00:38]} 68. Nd2 {[%emt 0:00:27]} Bxg3 {[%emt 0:00:23]} 69. Nc4+ {[%emt 0:00:07]} Kc5 {[%emt 0:00:35]} 70. Nb2 {[%emt 0:00:21]} Kd5 {[%emt 0:01:45]} 71. Nd3 {[%emt 0:01:14]} b3 {[%emt 0:00:19]} 72. Nb2 {[%emt 0:00:15]} Ke4 {[%emt 0:01:05]} 73. Ke6 {[%emt 0:00:10]} Kf3 {[%emt 0:01:48]} 74. Kf6 {[%emt 0:01:08]} Kg4 {[%emt 0:00:12]} 75. Kxg6 {[%emt 0:00:15]} Kxh4 {[%emt 0:00:17]} 76. Kf5 {[%emt 0:00:07]} Bc7 {[%emt 0:00:12]} 77. Ke4 {[%emt 0:00:40]} Kg3 {[%emt 0:00:05]} 78. Kd3 {[%emt 0:00:19]} h4 {[%emt 0:00:02]} 79. Nd1 {[%emt 0:00:37]} Kf3 {[%emt 0:00:45]} 0-1